bitfinex-derivatives/quotes_SOLF0:USTF0_20241230
["timestamp","ask_amount","ask_price","bid_price","bid_amount"]
[1735550818928,12.96835434,192.64,192.59,2.6008]
[1735550819225,12.96835434,192.64,192.56,3.08]
[1735550819426,15.95565434,192.67,192.56,3.08]
[1735550821928,12.96835434,192.67,192.56,3.08]
[1735550822232,12.96835434,192.67,192.63,2.6004]
[1735550822431,56.37969581,192.69,192.61,3.04]
[1735550822725,56.37969581,192.69,192.62,3.04]
[1735550823328,2.65834641,192.71,192.62,3.04]
[1735550825228,2.65834641,192.71,192.67,2.5999]
[1735550826327,1.606,192.75,192.67,2.5999]
[1735550826328,1.606,192.75,192.69,2.5995]
[1735550827530,12.96835434,192.76,192.67,3.04]
[1735550827737,12.96835434,192.79,192.67,3.04]
[1735550828035,12.96835434,192.79,192.67,7.7358]
[1735550828430,16.01045434,192.82,192.69,12.96835434]
[1735550829438,16.01045434,192.82,192.75,2.5987]
[1735550830233,16.01045434,192.82,192.74,3.04]
[1735550830432,12.96835434,192.85,192.74,3.04]
[1735550830932,12.96835434,192.85,192.78,2.5983]
[1735550831639,56.32778441,192.88,192.78,2.5983]
[1735550831837,4.5498,192.89,192.79,3.04]
[1735550832039,4.5498,192.89,192.8,3.04]
[1735550833727,1.5354,192.89,192.8,3.04]
[1735550834940,1.5354,192.89,192.84,2.5975]
[1735550836138,1.5354,192.89,192.85,2.5974]
[1735550836537,12.96835434,192.93,192.86,2.5972]
[1735550836841,12.96835434,192.93,192.85,3.04]
[1735550837038,1.5389,192.97,192.86,3.04]
[1735550837243,14.50725434,192.97,192.91,2.5965]
[1735550837644,14.50725434,192.97,192.87,3.04]
[1735550837837,14.50725434,192.97,192.87,4.6399]
[1735550838943,14.50725434,192.97,192.9,2.5968]
[1735550839333,14.50725434,192.97,192.88,2.5969]
[1735550839534,12.96835434,192.94,192.86,3.04]
[1735550840038,12.96835434,192.94,192.88,2.597]
[1735550840248,12.96835434,192.94,192.86,3.04]
[1735550840642,12.96835434,192.94,192.9,2.5967]
[1735550840842,14.50725434,192.97,192.86,3.04]
[1735550842046,12.96835434,193.0,192.88,12.96835434]
[1735550843140,12.96835434,193.0,192.91,2.5965]
[1735550843342,12.96835434,193.0,192.92,3.04]
[1735550844543,12.96835434,193.0,192.95,2.596]
[1735550844738,12.96835434,193.0,192.92,3.04]
[1735550845139,12.96835434,193.0,192.92,5.6364]
[1735550845941,4.7272,193.05,192.92,3.04]
[1735550846148,4.7272,193.05,192.93,2.5963]
[1735550846341,12.96835434,193.02,192.93,2.5963]
[1735550846748,12.96835434,193.02,192.92,3.04]
[1735550847557,12.96835434,193.02,192.97,2.5956]
[1735550847747,56.27605986,193.06,192.92,16.00835434]
[1735550847950,3.04,193.11,192.95,12.96835434]
[1735550848148,12.96835434,193.09,192.95,12.96835434]
[1735550848548,12.96835434,193.12,192.98,12.96835434]
[1735550848756,12.96835434,193.12,192.99,3.04]
[1735550850366,4.7165,193.15,192.99,3.04]
[1735550850367,4.7165,193.15,193.04,12.96835434]
[1735550850567,4.7165,193.15,193.05,3.1]
[1735550850959,4.7165,193.15,193.11,2.5937]
[1735550851259,4.7165,193.15,193.1,3.1]
[1735550851459,4.7165,193.15,193.1,5.6938]
[1735550852261,12.96835434,193.3,193.1,5.6938]
[1735550852262,3.1,193.32,193.11,12.96835434]
[1735550852457,12.96835434,193.25,193.11,12.96835434]
[1735550852662,12.96835434,193.25,193.11,17.55545434]
[1735550852859,12.96835434,193.25,193.18,2.5926]
[1735550853059,12.96835434,193.25,193.18,5.6926]
[1735550853865,12.96835434,193.25,193.18,3.1]
[1735550856959,4.5926,193.26,193.18,3.1]
[1735550857163,389.0,193.43,193.18,3.1]
[1735550857164,12.96835434,193.29,193.18,3.1]
[1735550857358,12.96835434,193.29,193.18,16.06835434]
[1735550857662,12.96835434,193.32,193.18,16.06835434]
[1735550858264,12.96835434,193.32,193.25,2.5918]
[1735550858565,12.96835434,193.32,193.25,5.6918]
[1735550859066,12.96835434,193.32,193.25,3.1]
[1735550863265,1.586,193.34,193.25,3.1]
[1735550863463,1.4666,193.39,193.27,12.96835434]
[1735550863664,1.4666,193.39,193.33,2.5907]
[1735550863862,1.4666,193.39,193.33,3.1]
[1735550869678,1.4666,193.39,193.27,12.96835434]
[1735550869868,1.4666,193.39,193.3,3.1]
[1735550872478,1.4666,193.39,193.33,2.5907]
[1735550874974,1.4666,193.39,193.3,16.06835434]
[1735550875171,17.58955434,193.43,193.3,16.06835434]
[1735550875376,4.6212,193.43,193.33,12.96835434]
[1735550875576,4.6212,193.43,193.38,2.59]
[1735550876174,4.6212,193.43,193.39,2.5899]
[1735550876377,4.6212,193.43,193.37,3.1]
[1735550876776,4.6212,193.43,193.37,5.6902]
[1735550877382,4.6212,193.43,193.37,3.1]
[1735550877581,4.6212,193.43,193.38,2.59]
[1735550878884,4.6212,193.43,193.37,3.1]
[1735550879081,17.58955434,193.43,193.31,4.5109]
[1735550879279,17.58955434,193.43,193.32,3.1]
[1735550879683,17.58955434,193.43,193.35,2.5903]
[1735550880279,17.58955434,193.43,193.36,2.5903]
[1735550880485,17.58955434,193.43,193.32,3.1]
[1735550880685,17.58955434,193.43,193.33,12.96835434]
[1735550881491,17.58955434,193.43,193.38,2.59]
[1735550882684,4.6212,193.43,193.37,3.06]
[1735550883006,12.96835434,193.52,193.44,2.5892]
[1735550883186,12.96835434,193.52,193.42,3.06]
[1735550883585,12.96835434,193.55,193.42,16.02835434]
[1735550884380,12.96835434,193.55,193.47,2.5888]
[1735550884581,12.96835434,193.55,193.47,5.6488]
[1735550884780,12.96835434,193.55,193.47,3.06]
[1735550884985,4.6875,193.56,193.47,5.6488]
[1735550885588,4.6875,193.56,193.47,3.06]
[1735550888091,12.96835434,193.55,193.47,3.06]
[1735550888283,12.96835434,193.52,193.42,3.06]
[1735550888690,12.96835434,193.52,193.39,12.96835434]
[1735550888890,12.96835434,193.52,193.4,3.06]
[1735550889095,12.96835434,193.49,193.4,3.06]
[1735550890592,4.6875,193.56,193.4,3.06]
[1735550890993,12.96835434,193.54,193.41,12.96835434]
[1735550892495,12.96835434,193.51,193.42,3.06]
[1735550892788,12.96835434,193.53,193.42,3.06]
[1735550895092,4.6875,193.56,193.42,3.06]
[1735550895287,12.96835434,193.53,193.42,3.06]
[1735550897192,12.96835434,193.53,193.41,3.06]
[1735550899994,12.96835434,193.5,193.4,3.06]
[1735550902498,3.06,193.52,193.4,3.06]
[1735550902702,12.96835434,193.5,193.4,3.06]
[1735550902997,12.96835434,193.5,193.36,14.48065434]
[1735550903295,12.96835434,193.44,193.36,3.06]
[1735550905489,4.6081,193.46,193.36,3.06]
[1735550906995,12.96835434,193.44,193.36,3.06]
[1735550912302,12.96835434,193.41,193.31,1.55]
[1735550912508,12.96835434,193.41,193.33,3.04]
[1735550913711,12.96835434,193.41,193.31,1.55]
[1735550913900,12.96835434,193.41,193.32,3.04]
[1735550916607,12.96835434,193.38,193.31,3.04]
[1735550917413,12.96835434,193.41,193.31,3.04]
[1735550921006,12.96835434,193.41,193.3,3.04]
[1735550922021,12.96835434,193.41,193.3,16.00835434]
[1735550924410,4.6081,193.46,193.3,16.00835434]
[1735550924616,12.96835434,193.43,193.3,16.00835434]
[1735550925609,12.96835434,193.4,193.3,3.04]
[1735550927018,12.96835434,193.4,193.27,16.02135434]
[1735550927217,12.96835434,193.37,193.28,3.04]
[1735550928614,12.96835434,193.37,193.27,3.04]
[1735550930520,1.5063,193.38,193.26,3.04]
[1735550930521,12.96835434,193.34,193.26,3.04]
[1735550931723,12.96835434,193.34,193.21,12.96835434]
[1735550931921,12.96835434,193.34,193.22,3.04]
[1735550933824,3.04,193.35,193.22,3.04]
[1735550934022,3.04,193.35,193.17,8.70200877]
[1735550934023,12.96835434,193.27,193.17,7.23390877]
[1735550934226,12.96835434,193.24,193.17,7.23390877]
[1735550934435,3.04,193.25,193.17,7.23390877]
[1735550935227,3.04,193.25,193.12,16.00835434]
[1735550938323,4.6468,193.26,193.15,12.96835434]
[1735550938837,12.96835434,193.18,193.0,375.82943618]
[1735550939028,12.96835434,193.15,193.02,107.44575959]
[1735550939223,12.96835434,193.12,193.02,86.80690525]
[1735550939435,12.96835434,193.09,193.07,28.93563508]
[1735550939924,16.00835434,193.12,193.07,28.93563508]
[1735550940331,16.00835434,193.12,193.04,2.5946]
[1735550940552,16.00835434,193.12,193.01,3.06]
[1735550940732,16.00835434,193.12,193.05,2.5945]
[1735550941434,16.00835434,193.12,193.01,3.06]
[1735550941435,16.00835434,193.12,193.03,2.5947]
[1735550942532,16.00835434,193.12,193.04,2.5946]
[1735550943031,16.00835434,193.12,193.01,3.06]
[1735550943236,16.00835434,193.12,193.06,2.5943]
[1735550944333,16.00835434,193.12,193.05,2.5945]
[1735550944530,16.00835434,193.12,193.01,3.06]
[1735550944933,16.00835434,193.12,193.05,2.5944]
[1735550945632,12.96835434,193.12,193.06,2.5943]
[1735550945952,1.5798,193.17,193.06,3.06]
[1735550947139,1.5798,193.17,193.08,2.5941]
[1735550947332,12.96835434,193.15,193.08,2.5941]
[1735550948243,12.96835434,193.15,193.06,5.6543]
[1735550948439,12.96835434,193.12,193.06,3.06]
[1735550948940,12.96835434,193.12,193.05,2.5944]
[1735550949137,12.96835434,193.12,193.02,3.06]
[1735550950138,12.96835434,193.12,193.04,2.5945]
[1735550950741,12.96835434,193.12,193.02,5.6548]
[1735550950939,12.96835434,193.12,193.02,3.06]
[1735550951842,12.96835434,193.12,193.05,2.5944]
[1735550953443,12.96835434,193.12,193.03,2.5946]
[1735550953646,12.96835434,193.12,193.01,3.06]
[1735550954139,12.96835434,193.12,193.03,2.5946]
[1735550954539,12.96835434,193.12,193.01,2.5949]
[1735550954747,12.96835434,193.09,192.99,3.06]
[1735550955154,12.96835434,193.09,192.96,12.96835434]
[1735550955333,1.5076,193.08,192.97,3.06]
[1735550955534,12.96835434,193.06,192.97,3.06]
[1735550955741,12.96835434,193.06,192.94,28.93563508]
[1735550955742,3.06,193.06,192.94,28.93563508]
[1735550956044,12.96835434,192.97,192.94,28.93563508]
[1735550958640,12.96835434,192.97,192.88,2.5968]
[1735550959641,12.96835434,192.97,192.9,2.5965]
[1735550959945,12.96835434,192.97,192.85,3.06]
[1735550960143,12.96835434,192.97,192.91,2.5964]
[1735550961037,12.96835434,193.1,192.87,12.96835434]
[1735550961038,12.96835434,193.0,192.87,12.96835434]
[1735550961843,12.96835434,193.0,192.95,2.5958]
[1735550962239,12.96835434,193.0,192.87,12.96835434]
[1735550964248,12.96835434,193.0,192.88,3.06]
[1735550964444,12.96835434,193.0,192.93,2.5961]
[1735550964637,12.96835434,193.0,192.88,3.06]
[1735550964839,14.45985434,193.0,192.88,3.06]
[1735550965043,15.99415434,193.0,192.88,3.06]
[1735550965445,15.99415434,193.0,192.92,2.5962]
[1735550965643,15.99415434,193.0,192.88,3.06]
[1735550965849,12.96835434,192.97,192.87,3.06]
[1735550966050,16.02835434,192.97,192.85,12.96835434]
[1735550966252,16.02835434,192.97,192.85,3.06]
[1735550966645,12.96835434,192.97,192.85,16.02835434]
[1735550966846,12.96835434,192.97,192.86,0.95427235]
[1735550967750,12.96835434,192.97,192.95,2.5958]
[1735550967949,19.05415434,193.0,192.95,2.5958]
[1735550969854,15.99415434,193.0,192.97,2.5955]
[1735550970052,12.96835434,193.04,192.91,12.96835434]
[1735550970246,12.96835434,193.04,192.92,1.578]
[1735550971048,12.96835434,193.07,192.94,12.96835434]
[1735550971252,12.96835434,193.07,192.95,3.12]
[1735550972554,12.96835434,193.07,193.03,2.5948]
[1735550974347,12.96835434,193.07,192.98,2.5953]
[1735550974553,12.96835434,193.07,192.95,3.12]
[1735550975055,12.96835434,193.07,193.02,2.5949]
[1735550978357,12.96835434,193.04,192.99,2.5952]
[1735550979262,12.96835434,193.04,192.96,3.12]
[1735550979757,12.96835434,193.04,193.02,2.5949]
[1735550979962,12.96835434,193.07,193.02,2.5949]
[1735550980157,12.96835434,193.07,192.96,3.12]
[1735550981360,12.96835434,193.07,193.04,2.5945]
[1735550982861,1.5358,193.09,192.97,12.96835434]
[1735550983063,12.96835434,193.1,193.06,2.5942]
[1735550984765,12.96835434,193.1,192.99,3.1243]
[1735550984963,12.96835434,193.1,193.07,2.5942]
[1735550987960,12.96835434,193.1,192.99,3.1243]
[1735550987961,12.96835434,193.1,193.03,3.12]
[1735550988171,7.7895,193.19,193.03,16.08835434]
[1735550988468,12.96835434,193.16,193.03,16.08835434]
[1735550988671,12.96835434,193.16,193.1,2.5937]
[1735550989566,12.96835434,193.16,193.09,2.5939]
[1735550993664,12.96835434,193.16,193.07,2.5942]
[1735550993869,12.96835434,193.13,193.03,3.12]
[1735550994072,12.96835434,193.13,193.0,14.56275434]
[1735550994269,12.96835434,193.1,193.03,2.5947]
[1735550994470,12.96835434,193.1,193.0,3.12]
[1735550995471,12.96835434,193.1,193.04,2.5946]
[1735550998574,12.96835434,193.1,193.0,3.12]
[1735550998883,12.96835434,193.1,193.02,2.5949]
[1735550999072,4.6355,193.09,193.02,2.5949]
[1735550999677,4.6355,193.09,193.03,2.5946]
[1735551000267,4.6355,193.09,193.04,2.5946]
[1735551000778,12.96835434,193.13,193.07,2.5942]
[1735551000985,12.96835434,193.13,193.03,3.06]
[1735551001278,12.96835434,193.13,193.07,2.5941]
[1735551001477,12.96835434,193.13,193.03,3.06]
[1735551001876,12.96835434,193.1,193.03,3.06]
[1735551002374,12.96835434,193.1,193.07,2.5942]
[1735551002673,12.96835434,193.1,193.03,3.06]
[1735551003771,12.96835434,193.1,193.05,2.5944]
[1735551004075,12.96835434,193.1,193.03,3.06]
[1735551004374,12.96835434,193.1,193.05,2.5944]
[1735551004672,12.96835434,193.1,193.03,3.06]
[1735551004976,12.96835434,193.1,193.05,2.5944]
[1735551005974,12.96835434,193.07,192.95,8.71000877]
[1735551006179,12.96835434,193.04,192.95,10.29390877]
[1735551006390,12.96835434,193.04,192.95,7.23390877]
[1735551006579,12.96835434,193.04,192.94,10.29390877]
[1735551007781,12.96835434,193.04,192.94,3.06]
[1735551007979,12.96835434,193.04,192.98,2.5953]
[1735551008484,12.96835434,193.04,192.94,3.06]
[1735551009381,12.96835434,193.04,192.97,2.5956]
[1735551011174,12.96835434,193.04,192.93,16.02835434]
[1735551011483,12.96835434,193.04,192.98,2.5954]
[1735551012074,12.96835434,193.04,192.92,3.0787]
[1735551012275,12.96835434,193.01,192.92,3.06]
[1735551012483,12.96835434,193.01,192.94,2.5959]
[1735551012686,12.96835434,193.01,192.9,28.93563508]
[1735551012884,3.0263,193.0,192.9,28.93563508]
[1735551013380,1.5226,192.99,192.9,28.93563508]
[1735551014082,12.96835434,192.98,192.89,3.06]
[1735551016584,12.96835434,192.98,192.89,5.6566]
[1735551017084,12.96835434,192.98,192.89,2.5966]
[1735551018582,12.96835434,192.98,192.92,2.5961]
[1735551018882,12.96835434,192.98,192.86,3.06]
[1735551018883,12.96835434,192.98,192.87,12.96835434]
[1735551019689,12.96835434,192.98,192.94,2.5958]
[1735551019877,1.5226,192.99,192.91,3.06]
[1735551020281,8.26729502,192.98,192.91,11.32729502]
[1735551020891,8.26729502,192.98,192.96,2.5956]
[1735551021892,3.06,193.07,192.96,3.06]
[1735551022082,8.26729502,193.03,192.97,8.26729502]
[1735551022283,12.90989335,193.07,192.96,3.06]
[1735551022592,1.6041,193.09,192.96,3.06]
[1735551022778,12.90989335,193.08,193.04,2.5945]
[1735551022988,12.90989335,193.08,192.97,12.90989335]
[1735551023383,1.6041,193.09,193.04,2.5946]
[1735551023585,12.90989335,193.08,192.97,12.90989335]
[1735551024190,12.90989335,193.08,193.02,2.5948]
[1735551024795,12.90989335,193.08,193.01,3.06]
[1735551027484,12.90989335,193.08,193.05,2.5944]
[1735551029790,12.90989335,193.08,193.01,3.06]
[1735551029986,12.90989335,193.08,193.02,2.5948]
[1735551030787,4.6712,193.12,192.99,3.06]
[1735551031093,4.6712,193.12,193.03,2.5947]
[1735551031094,12.90989335,193.08,193.03,2.5947]
[1735551032093,12.90989335,193.08,192.95,4.7075]
[1735551032293,12.90989335,193.08,192.96,3.06]
[1735551033187,12.90989335,193.08,193.02,2.5949]
[1735551035094,12.90989335,193.07,193.03,2.5947]
[1735551035794,12.90989335,193.07,193.02,2.5949]
[1735551036392,12.90989335,193.07,193.0,2.595]
[1735551036991,4.6712,193.12,192.98,2.5953]
[1735551036992,12.90989335,193.04,192.98,2.5953]
[1735551037191,12.90989335,193.04,192.92,3.06]
[1735551037395,1.4863,193.03,192.92,3.06]
[1735551037692,12.90989335,193.01,192.92,3.06]
[1735551037892,12.90989335,193.01,192.95,2.5957]
[1735551038093,12.90989335,193.01,192.92,3.06]
[1735551038297,12.90989335,193.01,192.94,2.5959]
[1735551038513,12.90989335,193.01,192.92,3.06]
[1735551038704,4.5463,193.03,192.92,3.06]
[1735551038897,4.5463,193.03,193.0,2.5951]
[1735551039094,12.90989335,193.04,193.0,2.5951]
[1735551040100,12.90989335,193.04,192.92,3.06]
[1735551040294,1.5222,193.06,192.94,12.90989335]
[1735551040494,12.90989335,193.07,192.95,1.5512]
[1735551041399,12.90989335,193.07,193.03,2.5947]
[1735551041705,12.90989335,193.07,192.98,3.06]
[1735551042301,8.26180237,193.05,192.98,11.32180237]
[1735551044293,8.26180237,193.05,193.02,2.5948]
[1735551044598,8.26180237,193.03,192.98,3.06]
[1735551044810,8.26180237,193.03,193.0,2.5951]
[1735551044999,8.26180237,193.03,192.96,8.26180237]
[1735551045206,8.26180237,193.01,192.94,8.26180237]
[1735551045595,8.26180237,193.01,192.98,2.5953]
[1735551046702,8.26180237,192.99,192.91,8.26180237]
[1735551046897,8.26180237,192.97,192.91,8.26180237]
[1735551047103,8.26180237,192.97,192.92,2.5962]
[1735551047302,8.26180237,192.97,192.89,11.49630237]
[1735551047505,8.26180237,192.95,192.88,3.06]
[1735551047808,8.26180237,192.93,192.87,18.55571114]
[1735551048204,12.92462638,192.96,192.9,2.5965]
[1735551048918,12.92462638,192.96,192.87,3.06]
[1735551049208,14.39842638,192.99,192.87,3.06]
[1735551050210,14.39842638,192.99,192.94,2.5959]
[1735551050608,12.92462638,193.02,192.92,3.06]
[1735551051207,12.92462638,193.02,192.97,2.5955]
[1735551052210,12.92462638,193.02,192.92,3.06]
[1735551052411,12.92462638,192.99,192.92,3.06]
[1735551052611,12.92462638,192.99,192.88,3.06]
[1735551053009,12.92462638,192.96,192.86,21.68063515]
[1735551053212,12.92462638,192.96,192.89,2.5965]
[1735551056708,12.92462638,192.96,192.87,3.06]
[1735551056709,12.92462638,192.93,192.87,2.5969]
[1735551057216,12.92462638,192.93,192.88,2.5968]
[1735551057916,12.92462638,192.93,192.86,2.597]
[1735551058218,12.92462638,192.93,192.83,3.06]
[1735551059420,12.92462638,192.93,192.88,2.5967]
[1735551061013,12.92462638,192.93,192.83,3.06]
[1735551061217,12.92462638,192.93,192.89,2.5966]
[1735551061721,12.92462638,192.93,192.83,3.06]
[1735551061922,12.92462638,192.93,192.88,2.5967]
[1735551062223,12.92462638,192.93,192.83,3.06]
[1735551062525,3.1096,192.95,192.83,15.98462638]
[1735551062822,3.1096,192.95,192.91,2.5963]
[1735551063016,3.1096,192.95,192.83,15.98462638]
[1735551064225,12.92462638,192.96,192.92,2.5962]
[1735551064620,1.5576,192.98,192.94,2.5959]
[1735551065724,1.5576,192.98,192.88,3.06]
[1735551065922,12.92462638,192.99,192.95,2.5957]
[1735551067021,12.92462638,192.99,192.88,4.524]
[1735551067524,1.489,193.0,192.89,12.92462638]
[1735551068426,1.489,193.0,192.98,2.5953]
[1735551068726,12.92462638,193.02,192.93,3.06]
[1735551068933,12.92462638,193.02,192.95,2.5957]
[1735551069231,12.92462638,193.05,192.93,3.06]
[1735551069921,12.92462638,193.02,192.93,3.06]
[1735551070325,8.26662787,192.99,192.97,2.5955]
[1735551071020,8.26662787,192.99,192.93,3.06]
[1735551071221,8.26662787,192.99,192.98,2.5954]
[1735551071523,8.26662787,192.99,192.93,3.06]
[1735551071743,8.26662787,192.99,192.96,2.5957]
[1735551072626,8.26662787,192.99,192.97,2.5955]
[1735551073023,8.26662787,192.99,192.93,3.06]
[1735551073224,8.26662787,193.01,192.98,2.5954]
[1735551075832,8.26662787,193.01,192.96,2.5957]
[1735551076025,8.26662787,192.97,192.92,3.06]
[1735551076425,8.26662787,192.97,192.94,2.5959]
[1735551076626,8.26662787,192.97,192.9,11.32662787]
[1735551077225,8.26662787,192.99,192.95,2.5958]
[1735551078328,8.26662787,192.97,192.94,2.5959]
[1735551078823,8.26662787,192.97,192.88,1.464]
[1735551079025,8.26662787,192.97,192.87,1.4636]
[1735551079026,8.26662787,192.93,192.87,1.4636]
[1735551079246,8.26662787,192.93,192.86,31.99563508]
[1735551080019,1.5913,192.96,192.86,3.06]
[1735551080020,8.26662787,192.91,192.86,3.06]
[1735551080726,8.26662787,192.91,192.89,2.5966]
[1735551082037,8.26662787,192.91,192.86,3.06]
[1735551083238,8.26662787,192.91,192.86,5.657]
[1735551084538,8.26662787,192.91,192.86,2.597]
[1735551084939,8.26662787,192.89,192.82,8.26662787]
[1735551085141,8.26662787,192.89,192.85,2.5972]
[1735551085444,8.26662787,192.89,192.83,3.06]
[1735551086542,8.26662787,192.89,192.85,2.5971]
[1735551088538,8.26662787,192.89,192.81,11.32662787]
[1735551088738,8.26662787,192.89,192.86,2.597]
[1735551089745,8.26662787,192.89,192.81,3.06]
[1735551089937,8.26662787,192.89,192.85,2.5971]
[1735551091354,8.26662787,192.89,192.86,2.597]
[1735551092145,1.5913,192.96,192.88,8.26662787]
[1735551092343,9.85792787,192.96,192.9,8.26662787]
[1735551092645,9.85792787,192.96,192.92,2.5962]
[1735551092844,1.5913,192.96,192.92,2.5962]
[1735551093240,1.5913,192.96,192.91,2.5964]
[1735551093442,8.26662787,192.93,192.86,11.28662787]
[1735551093642,8.26662787,192.91,192.86,3.02]
[1735551094445,8.26662787,192.91,192.87,2.5969]
[1735551094644,8.26662787,192.91,192.86,3.02]
[1735551094845,8.26662787,192.89,192.83,3.02]
[1735551095455,8.26662787,192.89,192.85,2.5971]
[1735551095945,8.26662787,192.89,192.83,3.02]
[1735551096244,8.26662787,192.91,192.84,8.26662787]
[1735551097046,8.26662787,192.89,192.83,3.02]
[1735551098143,8.26662787,192.89,192.84,2.5972]
[1735551099042,4.6113,192.96,192.78,8.26662787]
[1735551099043,8.26662787,192.85,192.78,8.26662787]
[1735551099448,8.26662787,192.85,192.8,2.5977]
[1735551099649,8.26662787,192.85,192.78,8.26662787]
[1735551100152,8.26662787,192.85,192.78,3.02]
[1735551100546,8.26662787,192.85,192.77,8.26662787]
[1735551100850,8.26662787,192.85,192.77,11.28662787]
[1735551101345,8.26662787,192.87,192.79,8.26662787]
[1735551101547,1.4604,192.88,192.81,8.26662787]
[1735551101750,8.26662787,192.89,192.82,3.02]
[1735551101943,8.26662787,192.91,192.83,8.26662787]
[1735551102142,8.26662787,192.93,192.91,2.5964]
[1735551102347,8.26662787,192.93,192.85,8.26662787]
[1735551102655,8.26662787,192.93,192.89,2.5965]
[1735551102848,8.26662787,192.93,192.87,8.26662787]
[1735551103154,8.26662787,192.95,192.87,11.28662787]
[1735551103345,8.26662787,192.95,192.91,2.5962]
[1735551103650,8.26662787,192.95,192.87,11.28662787]
[1735551103851,8.26662787,192.95,192.87,3.02]
[1735551104055,8.26662787,192.95,192.9,2.5965]
[1735551104254,12.92429979,192.97,192.9,2.5965]
[1735551104550,12.92429979,192.97,192.84,12.92429979]
[1735551104756,12.92429979,192.94,192.85,3.02]
[1735551106156,12.92429979,192.97,192.85,3.02]
[1735551107556,12.92429979,192.97,192.89,2.5966]
[1735551108361,12.92429979,192.97,192.92,2.5962]
[1735551109348,12.92429979,192.97,192.85,3.02]
[1735551112661,12.92429979,192.94,192.85,3.02]
[1735551113260,12.92429979,192.94,192.83,4.66]
[1735551113261,12.92429979,192.94,192.84,3.02]
[1735551113465,12.92429979,192.94,192.88,2.5968]
[1735551114466,12.92429979,192.94,192.84,3.02]
[1735551115263,12.92429979,192.94,192.81,12.92429979]
[1735551115461,12.92429979,192.91,192.81,31.91099361]
[1735551115660,12.92429979,192.91,192.84,2.5972]
[1735551116365,12.92429979,192.91,192.81,3.02]
[1735551116366,12.92429979,192.91,192.85,2.5972]
[1735551119471,12.92429979,192.91,192.83,2.5974]
[1735551120468,12.92429979,192.84,192.74,86.6809977]
[1735551120771,12.92429979,192.77,192.76,57.77777293]
[1735551121768,12.92429979,192.77,192.72,216.48513494]
[1735551121769,12.92429979,192.77,192.72,2.5989]
[1735551121970,12.92429979,192.77,192.65,3.02]
[1735551122473,12.92429979,192.77,192.72,2.5988]
[1735551122672,12.92429979,192.77,192.65,3.02]
[1735551123175,12.92429979,192.77,192.71,2.5989]
[1735551125277,12.92429979,192.77,192.72,2.5989]
[1735551125479,12.92429979,192.8,192.7,3.06]
[1735551125877,12.92429979,192.8,192.74,2.5986]
[1735551127975,12.92429979,192.8,192.72,2.5989]
[1735551128781,12.92429979,192.8,192.7,3.06]
[1735551128985,12.92429979,192.77,192.7,3.06]
[1735551129176,12.92429979,192.77,192.67,3.06]
[1735551130077,15.98429979,192.77,192.68,2.5995]
[1735551130281,15.98429979,192.77,192.64,6.1638]
[1735551130480,1.542,192.76,192.64,6.1638]
[1735551130682,1.542,192.76,192.66,2.5996]
[1735551130982,1.542,192.76,192.64,6.1638]
[1735551131585,1.542,192.76,192.67,2.5995]
[1735551131982,12.92429979,192.74,192.67,2.5995]
[1735551133085,12.92429979,192.74,192.64,6.1638]
[1735551133282,12.92429979,192.74,192.69,2.5992]
[1735551134681,1.542,192.76,192.71,2.599]
[1735551136087,1.542,192.76,192.64,6.1638]
[1735551136387,12.92429979,192.77,192.72,2.5989]
[1735551136683,12.92429979,192.77,192.71,2.599]
[1735551137887,12.92429979,192.77,192.64,6.1638]
[1735551138089,12.92429979,192.77,192.7,2.5992]
[1735551138284,3.06,192.8,192.66,8.28904527]
[1735551138285,8.28904527,192.73,192.66,8.28904527]
[1735551138884,8.28904527,192.73,192.68,2.5993]
[1735551141792,8.28904527,192.71,192.67,2.5996]
[1735551142291,8.28904527,192.71,192.64,11.34904527]
[1735551143391,8.28904527,192.71,192.66,2.5997]
[1735551144895,3.06,192.8,192.66,2.5997]
[1735551145093,8.28904527,192.7,192.66,2.5997]
[1735551147095,8.28904527,192.7,192.67,2.5996]